fUST/lending_fUST_20250202
["ID","MTS","AMOUNT","RATE_DAILY","PERIOD"]
[351221366,1738444242551,-52.37927261,0.00016438,7]
[351221367,1738444242560,-500.0,0.00016438,2]
[351221368,1738444242570,-377.76420344,0.00016438,2]
[351221369,1738444242580,-500.0,0.00016438,2]
[351221370,1738444242590,-500.0,0.00016438,2]
[351221371,1738444242599,-500.0,0.00016438,2]
[351221372,1738444242608,-500.0,0.00016438,2]
[351221373,1738444242617,-500.0,0.00016438,2]
[351221374,1738444242626,-500.0,0.00016438,2]
[351221375,1738444242636,-500.0,0.00016438,2]
[351221376,1738444242645,-500.0,0.00016438,2]
[351221377,1738444242655,-500.0,0.00016438,2]
[351221378,1738444242664,-1119.06,0.00016438,2]
[351221379,1738444242674,-502.0206769,0.00016438,2]
[351221380,1738444242683,-500.0,0.00016438,2]
[351221381,1738444242693,-151.0,0.00016438,2]
[351221382,1738444242703,-500.0,0.00016438,2]
[351221383,1738444242711,-151.0,0.00016438,2]
[351221384,1738444242722,-500.0,0.00016438,2]
[351221385,1738444242731,-500.0,0.00016438,2]
[351221386,1738444242740,-500.0,0.00016438,2]
[351221388,1738444242749,-500.87089003,0.00016438,2]
[351221390,1738444242759,-502.51052242,0.00016438,2]
[351221391,1738444242768,-500.0,0.00016438,2]
[351221392,1738444242778,-500.0,0.00016438,2]
[351221393,1738444242787,-776.43,0.00016438,2]
[351221394,1738444242796,-500.0,0.00016438,2]
[351221395,1738444242806,-500.0,0.00016438,2]
[351221396,1738444242815,-500.0,0.00016438,2]
[351221397,1738444242824,-500.0,0.00016438,2]
[351221398,1738444242834,-500.0,0.00016438,2]
[351221399,1738444242843,-500.0,0.00016438,2]
[351221400,1738444242853,-501.19304145,0.00016438,2]
[351221401,1738444242863,-500.0,0.00016438,2]
[351221403,1738444242873,-500.0,0.00016438,2]
[351221405,1738444242882,-500.0,0.00016438,2]
[351221407,1738444242892,-5419.39,0.00016438,2]
[351221410,1738444242901,-2351.63,0.00016438,2]
[351221412,1738444242911,-500.0,0.00016438,2]
[351221414,1738444242920,-500.0,0.00016438,2]
[351221415,1738444242930,-503.36204641,0.00016438,2]
[351221417,1738444242938,-500.0,0.00016438,2]
[351221420,1738444242948,-553.89491415,0.00016438,2]
[351221423,1738444242958,-500.0,0.00016438,2]
[351221426,1738444242968,-621.19065121,0.00016438,2]
[351221429,1738444242978,-500.0,0.00016438,2]
[351221431,1738444242987,-529.94573609,0.00016438,2]
[351221433,1738444242996,-500.0,0.00016438,2]
[351221434,1738444243006,-500.0,0.00016438,2]
[351221435,1738444243017,-501.25191593,0.00016438,2]
[351221436,1738444243026,-371.33137194,0.00016438,2]
[351221438,1738444243035,-501.19815025,0.00016438,2]
[351221440,1738444243044,-500.0,0.00016438,2]
[351221442,1738444243053,-500.0,0.00016438,2]
[351221443,1738444243063,-500.0,0.00016438,2]
[351221444,1738444243072,-500.0,0.00016438,2]
[351221445,1738444243081,-500.0,0.00016438,2]
[351221447,1738444243090,-501.53276552,0.00016438,2]
[351221448,1738444243099,-500.0,0.00016438,2]
[351221449,1738444243109,-500.0,0.00016438,2]
[351221450,1738444243119,-500.0,0.00016438,2]
[351221451,1738444243129,-3000.0,0.0001644,2]
[351221452,1738444243138,-500.0,0.00016449,2]
[351221453,1738444243148,-3374.260015,0.0001645,2]
[351221454,1738444243157,-151.0,0.00016472,2]
[351221455,1738444243167,-151.0,0.00016472,2]
[351221456,1738444243176,-230.36036,0.00016472,2]
[351221457,1738444243185,-502.32151229,0.00016473,2]
[351221458,1738444243195,-534.71982995,0.00016473,2]
[351221460,1738444243205,-500.0,0.00016473,2]
[351221462,1738444243214,-500.0,0.00016473,2]
[351221463,1738444243224,-500.0,0.00016473,2]
[351221464,1738444243233,-2082.72,0.00016474,2]
[351221465,1738444243243,-2082.72,0.00016474,2]
[351221466,1738444243253,-500.0,0.00016474,2]
[351221467,1738444243262,-500.0,0.00016474,2]
[351221468,1738444243272,-151.0,0.00016475,2]
[351221469,1738444243282,-151.0,0.00016475,2]
[351221470,1738444243291,-151.0,0.00016475,2]
[351221471,1738444243300,-151.0,0.00016475,2]
[351221473,1738444243310,-253.606198,0.00016475,2]
[351221474,1738444243320,-279.97788,0.00016475,2]
[351221475,1738444243330,-151.0,0.00016475,2]
[351221476,1738444243342,-402.030999,0.00016475,2]
[351221477,1738444243351,-402.030999,0.00016475,2]
[351221478,1738444243361,-151.0,0.00016475,2]
[351221479,1738444243371,-153.0,0.00016497,2]
[351221480,1738444243380,-153.0,0.00016497,2]
[351221481,1738444243391,-153.0,0.00016497,2]
[351221482,1738444243400,-153.0,0.00016497,2]
[351221483,1738444243410,-153.0,0.00016497,2]
[351221484,1738444243420,-153.0,0.00016497,2]
[351221485,1738444243430,-153.0,0.00016497,2]
[351221486,1738444243439,-153.0,0.00016497,2]
[351221487,1738444243448,-153.0,0.00016497,2]
[351221488,1738444243457,-153.0,0.00016497,2]
[351221489,1738444243467,-153.0,0.00016497,2]
[351221490,1738444243476,-153.0,0.00016497,2]
[351221491,1738444243486,-153.0,0.00016497,2]
[351221492,1738444243495,-153.0,0.00016497,2]
[351221493,1738444243504,-153.0,0.00016497,2]
[351221494,1738444243514,-153.0,0.00016497,2]
[351221495,1738444243523,-153.0,0.00016497,2]
[351221496,1738444243532,-153.0,0.00016497,2]
[351221497,1738444243541,-153.0,0.00016497,2]
[351221498,1738444243550,-153.0,0.00016497,2]
[351221499,1738444243560,-153.0,0.00016497,2]
[351221500,1738444243569,-153.0,0.00016497,2]
[351221501,1738444243579,-153.0,0.00016497,2]
[351221502,1738444243588,-153.0,0.00016497,2]
[351221503,1738444243597,-153.0,0.000165,2]
[351221504,1738444243607,-2082.72,0.00016572,2]
[351221505,1738444243616,-2082.72,0.00016572,2]
[351221506,1738444243716,-2082.72,0.00016572,2]
[351221507,1738444243727,-2082.72,0.00016572,2]
[351221508,1738444243736,-2082.72,0.00016572,2]
[351221509,1738444243746,-2082.72,0.00016572,2]
[351221510,1738444243756,-2082.77624989,0.00016572,2]
[351221511,1738444243767,-151.0,0.00016573,2]
[351221512,1738444243776,-500.0,0.00016573,2]
[351221513,1738444243786,-500.0,0.00016573,2]
[351221514,1738444243795,-151.0,0.00016574,2]
[351221515,1738444243804,-151.0,0.00016574,2]
[351221516,1738444243814,-318.86,0.00016574,2]
[351221517,1738444243823,-500.0,0.00016575,2]
[351221518,1738444243832,-500.0,0.00016575,2]
[351221519,1738444243841,-500.0,0.00016575,2]
[351221520,1738444243850,-507.48610646,0.00016575,2]
[351221521,1738444243859,-151.0,0.00016575,2]
[351221522,1738444243868,-500.0,0.00016575,2]
[351221523,1738444243877,-500.0,0.00016575,2]
[351221524,1738444243887,-500.0,0.00016575,2]
[351221525,1738444243896,-500.0,0.00016575,2]
[351221526,1738444243905,-151.0,0.00016575,2]
[351221527,1738444243917,-500.0,0.00016575,2]
[351221528,1738444243928,-500.0,0.00016575,2]
[351221529,1738444243939,-151.0,0.00016575,2]
[351221530,1738444243949,-167.800352,0.00016575,2]
[351221531,1738444243958,-500.0,0.00016575,2]
[351221532,1738444243969,-151.0,0.00016575,2]
[351221533,1738444243978,-500.0,0.00016575,2]
[351221534,1738444243987,-242.59725368,0.00016575,2]
[351221535,1738444243996,-500.0,0.00016575,2]
[351221536,1738444244005,-500.0,0.00016575,2]
[351221537,1738444244014,-500.0,0.00016575,2]
[351221538,1738444244024,-500.0,0.00016575,2]
[351221539,1738444244034,-500.0,0.00016575,2]
[351221540,1738444244044,-500.0,0.00016575,2]
[351221541,1738444244054,-500.0,0.00016575,2]
[351221542,1738444244064,-500.0,0.00016575,2]
[351221543,1738444244073,-500.0,0.00016575,2]
[351221544,1738444244082,-500.0,0.00016575,2]
[351221545,1738444244093,-500.0,0.00016575,2]
[351221546,1738444244103,-199.96569155,0.00016575,2]
[351221547,1738444244115,-500.0,0.00016575,2]
[351221548,1738444244125,-500.0,0.00016575,2]
[351221549,1738444244135,-500.0,0.00016575,2]
[351221550,1738444244145,-500.0,0.00016575,2]
[351221551,1738444244154,-500.0,0.00016575,2]
[351221552,1738444244163,-500.0,0.00016575,2]
[351221553,1738444244172,-500.0,0.00016575,2]
[351221554,1738444244182,-327.03755949,0.00016575,2]
[351221555,1738444244191,-151.0,0.00016575,2]
[351221556,1738444244200,-151.0,0.00016575,2]
[351221557,1738444244208,-500.0,0.00016575,2]
[351221558,1738444244218,-501.87374234,0.00016575,2]
[351221559,1738444244228,-507.35096873,0.00016575,2]
[351221560,1738444244236,-228.24981483,0.00016575,2]
[351221561,1738444244246,-500.0,0.00016575,2]
[351221562,1738444244255,-500.0,0.00016575,2]
[351221563,1738444244265,-500.0,0.00016575,2]
[351221564,1738444244275,-500.0,0.00016575,2]
[351221565,1738444244284,-500.0,0.00016575,2]
[351221566,1738444244293,-500.0,0.00016575,2]
[351221567,1738444244303,-500.0,0.00016575,2]
[351221568,1738444244312,-500.0,0.00016575,2]
[351221569,1738444244322,-500.0,0.00016575,2]
[351221570,1738444244331,-207.8043017,0.00016575,2]
[351221571,1738444244342,-503.33115944,0.00016575,2]
[351221572,1738444244352,-504.61595925,0.00016575,2]
[351221573,1738444244361,-500.0,0.00016575,2]
[351221574,1738444244370,-500.0,0.00016575,2]
[351221575,1738444244379,-513.58464927,0.00016575,2]
[351221576,1738444244390,-500.0,0.00016575,2]
[351221577,1738444244399,-500.0,0.00016575,2]
[351221578,1738444244409,-500.0,0.00016575,2]
[351221579,1738444244419,-151.0,0.00016575,2]
[351221580,1738444244429,-151.0,0.00016575,2]
[351221581,1738444244438,-500.0,0.00016575,2]
[351221582,1738444244447,-500.0,0.00016575,2]
[351221583,1738444244457,-500.0,0.00016575,2]
[351221584,1738444244466,-500.0,0.00016575,2]
[351221585,1738444244475,-500.0,0.00016575,2]
[351221586,1738444244486,-500.0,0.00016575,2]
[351221587,1738444244498,-505.00719966,0.00016575,2]
[351221588,1738444244510,-278.84389108,0.00016575,2]
[351221589,1738444244523,-500.0,0.00016575,2]
[351221590,1738444244533,-400.58659086,0.00016575,2]
[351221591,1738444244541,-176.77856364,0.00016575,2]
[351221592,1738444244551,-500.0,0.00016575,2]
[351221593,1738444244560,-500.0,0.00016575,2]
[351221594,1738444244569,-500.0,0.00016575,2]
[351221595,1738444244578,-500.0,0.00016575,2]
[351221596,1738444244588,-500.0,0.00016575,2]
[351221597,1738444244597,-500.0,0.00016575,2]
[351221598,1738444244606,-500.0,0.00016575,2]
[351221599,1738444244615,-500.0,0.00016575,2]
[351221600,1738444244625,-500.0,0.00016575,2]
[351221601,1738444244635,-500.0,0.00016575,2]
[351221602,1738444244645,-500.0,0.00016575,2]
[351221603,1738444244655,-500.0,0.00016575,2]
[351221604,1738444244665,-500.0,0.00016575,2]
[351221605,1738444244674,-500.0,0.00016575,2]
[351221606,1738444244683,-186.26375421,0.00016575,2]
[351221607,1738444244693,-151.0,0.00016575,2]
[351221608,1738444244703,-151.0,0.00016575,2]
[351221609,1738444244712,-500.0,0.00016575,2]
[351221610,1738444244722,-500.0,0.00016575,2]
[351221611,1738444244731,-500.0,0.00016575,2]
[351221612,1738444244740,-500.0,0.00016575,2]
[351221613,1738444244750,-500.0,0.00016575,2]
[351221614,1738444244759,-500.0,0.00016575,2]
[351221615,1738444244769,-500.0,0.00016575,2]
[351221616,1738444244778,-500.0,0.00016575,2]
[351221617,1738444244787,-500.0,0.00016575,2]
[351221618,1738444244797,-501.0964944,0.00016575,2]
[351221619,1738444244806,-500.0,0.00016575,2]
[351221620,1738444244815,-500.0,0.00016575,2]
[351221621,1738444244824,-500.0,0.00016575,2]
[351221622,1738444244835,-500.0,0.00016575,2]
[351221623,1738444244845,-500.0,0.00016575,2]
[351221624,1738444244854,-500.0,0.00016575,2]
[351221625,1738444244863,-500.0,0.00016575,2]
[351221626,1738444244873,-500.0,0.00016575,2]
[351221627,1738444244883,-503.55094054,0.00016575,2]
[351221628,1738444244892,-500.0,0.00016575,2]
[351221629,1738444244902,-500.0,0.00016575,2]
[351221630,1738444244911,-291.43065656,0.00016575,2]
[351221631,1738444244923,-500.0,0.00016575,2]
[351221632,1738444244932,-500.0,0.00016575,2]
[351221633,1738444244941,-500.0,0.00016575,2]
[351221634,1738444244950,-500.0,0.00016575,2]
[351221635,1738444244961,-500.0,0.00016575,2]
[351221636,1738444244971,-500.0,0.00016575,2]
[351221637,1738444244981,-500.0,0.00016575,2]
[351221638,1738444244990,-500.0,0.00016575,2]
[351221639,1738444244999,-500.0,0.00016575,2]
[351221640,1738444245010,-500.0,0.00016575,2]
[351221641,1738444245019,-500.0,0.00016575,2]
[351221642,1738444245028,-500.0,0.00016575,2]
[351221643,1738444245038,-365.67453229,0.00016575,2]
[351221644,1738444245048,-500.0,0.00016575,2]
[351221645,1738444245058,-500.0,0.00016575,2]
[351221646,1738444245068,-500.0,0.00016575,2]
[351221647,1738444245078,-500.0,0.00016575,2]
[351221648,1738444245088,-151.0,0.00016575,2]
[351221649,1738444245097,-500.0,0.00016575,2]
[351221650,1738444245107,-500.0,0.00016575,2]
[351221651,1738444245116,-500.0,0.00016575,2]
[351221652,1738444245125,-500.0,0.00016575,2]
[351221653,1738444245134,-500.0,0.00016575,2]
[351221654,1738444245144,-500.0,0.00016575,2]
[351221655,1738444245153,-737.82,0.00016575,2]
[351221656,1738444245164,-2035.24,0.00016575,2]
[351221657,1738444245173,-500.0,0.00016575,2]
[351221658,1738444245182,-500.0,0.00016575,2]
[351221659,1738444245191,-500.0,0.00016575,2]
[351221660,1738444245200,-500.0,0.00016575,2]
[351221661,1738444245210,-500.0,0.00016575,2]
[351221662,1738444245219,-500.0,0.00016575,2]
[351221663,1738444245229,-500.0,0.00016575,2]
[351221664,1738444245238,-589.97,0.00016575,2]
[351221665,1738444245246,-500.0,0.00016575,2]
[351221666,1738444245256,-1103.07,0.00016575,2]
[351221667,1738444245265,-500.0,0.00016575,2]
[351221668,1738444245274,-500.0,0.00016575,2]
[351221669,1738444245284,-500.0,0.00016575,2]
[351221670,1738444245293,-503.9413977,0.00016575,2]
[351221671,1738444245302,-500.0,0.00016575,2]
[351221672,1738444245311,-500.0,0.00016575,2]
[351221673,1738444245321,-500.0,0.00016575,2]
[351221674,1738444245330,-510.42339776,0.00016575,2]
[351221675,1738444245340,-500.0,0.00016575,2]
[351221676,1738444245350,-500.0,0.00016575,2]
[351221677,1738444245359,-500.0,0.00016575,2]
[351221678,1738444245369,-500.0,0.00016575,2]
[351221679,1738444245378,-500.0,0.00016575,2]
[351221680,1738444245471,-500.0,0.00016575,2]
[351221681,1738444245481,-500.0,0.00016575,2]
[351221682,1738444245490,-151.0,0.00016575,2]
[351221683,1738444245499,-151.0,0.00016575,2]
[351221684,1738444245509,-500.0,0.00016575,2]
[351221685,1738444245518,-500.0,0.00016575,2]
[351221686,1738444245527,-500.0,0.00016575,2]
[351221687,1738444245536,-500.0,0.00016575,2]
[351221688,1738444245545,-854.82,0.00016575,2]
[351221689,1738444245555,-402.030999,0.00016575,2]
[351221690,1738444245565,-500.0,0.00016575,2]
[351221691,1738444245574,-402.030999,0.00016575,2]
[351221692,1738444245583,-500.0,0.00016575,2]
[351221693,1738444245593,-402.030999,0.00016575,2]
[351221694,1738444245602,-402.030999,0.00016575,2]
[351221695,1738444245611,-500.0,0.00016575,2]
[351221696,1738444245620,-500.0,0.00016575,2]
[351221697,1738444245629,-636.00016612,0.00016575,2]
[351221698,1738444245639,-1570.64,0.00016575,2]
[351221699,1738444245648,-500.0,0.00016575,2]
[351221700,1738444245657,-166.61742715,0.00016575,2]
[351221701,1738444245666,-500.0,0.00016575,2]
[351221702,1738444245675,-502.0607413,0.00016575,2]
[351221703,1738444245685,-508.63866783,0.00016575,2]
[351221704,1738444245694,-500.0,0.00016575,2]
[351221705,1738444245703,-767.37,0.00016575,2]
[351221706,1738444245713,-500.0,0.00016575,2]
[351221707,1738444245722,-316.87735757,0.00016575,2]
[351221708,1738444245731,-500.0,0.00016575,2]
[351221709,1738444245741,-782.24,0.00016575,2]
[351221710,1738444245752,-500.0,0.00016575,2]
[351221711,1738444245762,-500.0,0.00016575,2]
[351221712,1738444245772,-500.0,0.00016575,2]
[351221714,1738444245781,-500.0,0.00016575,2]
[351221715,1738444245790,-3244.82,0.00016575,2]
[351221717,1738444245799,-500.0,0.00016575,2]
[351221718,1738444245810,-500.0,0.00016575,2]
[351221719,1738444245820,-500.0,0.00016575,2]
[351221721,1738444245830,-765.83,0.00016575,2]
[351221722,1738444245839,-500.0,0.00016575,2]
[351221723,1738444245849,-500.0,0.00016575,2]
[351221725,1738444245859,-500.0,0.00016575,2]
[351221727,1738444245868,-500.0,0.00016575,2]
[351221728,1738444245878,-500.0,0.00016575,2]
[351221729,1738444245888,-500.0,0.00016575,2]
[351221730,1738444245897,-500.0,0.00016575,2]
[351221731,1738444245906,-1000.0,0.00016575,7]
[351221732,1738444245915,-500.0,0.00016575,2]
[351221733,1738444245925,-500.0,0.00016575,2]
[351221734,1738444245934,-500.0,0.00016575,2]
[351221735,1738444245943,-500.0,0.00016575,2]
[351221737,1738444245953,-500.0,0.00016575,2]
[351221739,1738444245964,-1119.06,0.00016575,2]
[351221741,1738444245973,-500.0,0.00016575,2]
[351221742,1738444245982,-151.0,0.00016575,2]
[351221743,1738444245992,-151.0,0.00016575,2]
[351221744,1738444246001,-500.0,0.00016575,2]
[351221745,1738444246010,-500.0,0.00016575,2]
[351221746,1738444246020,-776.43,0.00016575,2]
[351221747,1738444246029,-500.0,0.00016575,2]
[351221748,1738444246038,-500.0,0.00016575,2]
[351221749,1738444246048,-500.0,0.00016575,2]
[351221750,1738444246058,-635.38989173,0.00016575,2]
[351221751,1738444246067,-500.0,0.00016575,2]
[351221752,1738444246076,-500.0,0.00016575,2]
[351221753,1738444246087,-5419.39,0.00016575,2]
[351221754,1738444246096,-2351.63,0.00016575,2]
[351221755,1738444246105,-500.0,0.00016575,2]
[351221757,1738444246114,-511.93816012,0.00016575,2]
[351221759,1738444246125,-500.0,0.00016575,2]
[351221760,1738444246134,-453.64,0.00016575,2]
[351221761,1738444246143,-500.0,0.00016575,2]
[351221762,1738444246153,-526.90165557,0.00016575,2]
[351221763,1738444246163,-500.0,0.00016575,2]
[351221764,1738444246172,-500.0,0.00016575,2]
[351221765,1738444246181,-500.0,0.00016575,2]
[351221766,1738444246190,-153.0,0.00016575,2]
[351221767,1738444246210,-153.0,0.0001663,2]
[351221768,1738444246221,-153.0,0.0001663,2]
[351221769,1738444246231,-308.4664278,0.0001663,2]
[351221770,1738444246241,-153.0,0.0001663,2]
[351221771,1738444246251,-181.805,0.0001665,2]
[351221772,1738444246261,-151.0,0.00016711,2]
[351221773,1738444246270,-151.0,0.00016711,2]
[351221775,1738444246280,-533.1886362,0.00016712,2]
[351221776,1738444246293,-501.54831558,0.00016712,2]
[351221777,1738444246304,-500.0,0.00016712,2]
[351221778,1738444246314,-500.0,0.00016712,2]
[351221779,1738444246323,-362.01618508,0.00016712,2]
[351221780,1738444246335,-500.0,0.00016712,2]
[351221781,1738444246346,-151.0,0.00016712,2]
[351221782,1738444246356,-151.0,0.00016712,2]
[351221783,1738444246365,-500.0,0.00016712,2]
[351221784,1738444246375,-497.49593106,0.00016712,2]
[351221785,1738444246386,-151.0,0.00016712,2]
[351221786,1738444246396,-151.0,0.00016712,2]
[351221787,1738444246405,-500.0,0.00016712,2]
[351221788,1738444246415,-155.579007,0.00016712,2]
[351221789,1738444246426,-500.0,0.00016712,2]
[351221790,1738444246442,-544.19,0.00016712,2]
[351221791,1738444246461,-500.0,0.00016712,2]
[351221792,1738444246471,-500.0,0.00016712,2]
[351221793,1738444246481,-495.23725497,0.00016712,2]
[351221794,1738444246571,-83.06091011,0.00016712,2]
[351221795,1738444246581,-416.93908989,0.00016712,2]
[351221796,1738444246892,-151.0,0.00016438,2]
[351221797,1738444246902,-121.19120742,0.00016438,2]
[351221798,1738444599286,232.037347,0.00013973,2]
[351221801,1738445055772,203.142631,0.00015011,2]
[351221804,1738445157494,1830.18818384,0.00015011,2]
[351221807,1738445180624,5000.0,0.00015011,2]
[351221810,1738445203787,5000.0,0.00015011,2]
[351221831,1738445382685,5000.0,0.00015011,2]
[351221858,1738445432639,-5000.0,0.0001521,2]
[351221860,1738445432649,-300.0,0.00015252,2]
[351221862,1738445432658,-9557.69547335,0.00015253,2]
[351221867,1738445432699,-579.52157592,0.00015253,2]
[351221870,1738445432716,-184.14941753,0.00015253,2]
[351221872,1738445432727,-317.7,0.00015364,2]
[351221874,1738445432736,-265.426088,0.00015516,2]
[351221876,1738445432745,-169.76980512,0.00015616,2]
[351221904,1738445438476,-330.23019488,0.00015616,2]
[351221905,1738445438485,-2311.13189863,0.00016,2]
[351221906,1738445438495,-466.70213218,0.000163,2]
[351221907,1738445438544,-69.2838428,0.000163,2]
[351221908,1738445438553,-509.66696298,0.000163,2]
[351221909,1738445438563,-535.98597495,0.0001631,2]
[351221910,1738445438572,-535.98597495,0.00016319,2]
[351221911,1738445438581,-535.98597495,0.00016329,2]
[351221912,1738445438597,-535.98597495,0.00016338,2]
[351221913,1738445438606,-29998.56659265,0.00016338,2]
[351221914,1738445438617,-5486.99736061,0.00016338,2]
[351221916,1738445438627,-153.0,0.000164,2]
[351221918,1738445438636,-546.38685329,0.00016437,2]
[351221920,1738445438645,-500.0,0.00016437,2]
[351221923,1738445438654,-366.23411523,0.00016437,2]
[351221924,1738445438664,-500.0,0.00016437,2]
[351221925,1738445438673,-500.0,0.00016437,2]
[351221926,1738445438683,-500.0,0.00016437,2]
[351221927,1738445438692,-548.13554058,0.00016437,2]
[351221928,1738445438701,-283.12617117,0.00016437,2]
[351221929,1738445438711,-500.0,0.00016437,2]
[351221930,1738445438720,-595.56775076,0.00016437,2]
[351221931,1738445438730,-500.0,0.00016437,2]
[351221932,1738445438741,-500.0,0.00016437,2]
[351221933,1738445438751,-500.0,0.00016438,2]
[351221934,1738445438761,-151.0,0.00016438,2]
[351221935,1738445438770,-151.0,0.00016438,2]
[351221936,1738445438781,-500.0,0.00016438,2]
[351221937,1738445438791,-500.0,0.00016438,2]
[351221938,1738445438800,-502.41721277,0.00016438,2]
[351221939,1738445438810,-500.0,0.00016438,2]
[351221940,1738445438819,-500.0,0.00016438,2]
[351221941,1738445438829,-500.0,0.00016438,2]
[351221942,1738445438844,-500.0,0.00016438,2]
[351221943,1738445438854,-500.0,0.00016438,2]
[351221944,1738445438864,-500.0,0.00016438,2]
[351221945,1738445438874,-583.06091011,0.00016438,2]
[351221946,1738445438884,-500.0,0.00016438,2]
[351221947,1738445438894,-500.0,0.00016438,2]
[351221948,1738445438904,-500.0,0.00016438,2]
[351221949,1738445438913,-500.0,0.00016438,2]
[351221950,1738445438923,-589.21,0.00016438,2]
[351221951,1738445438933,-500.0,0.00016438,2]
[351221952,1738445438944,-500.0,0.00016438,2]
[351221953,1738445438954,-501.01491874,0.00016438,2]
[351221954,1738445438966,-500.0,0.00016438,2]
[351221955,1738445438980,-501.52428598,0.00016438,2]
[351221956,1738445438991,-500.0,0.00016438,2]
[351221957,1738445439002,-500.0,0.00016438,2]
[351221958,1738445439013,-647.82335758,0.00016438,2]
[351221959,1738445439024,-452.315152,0.00016438,2]
[351221960,1738445439034,-500.0,0.00016438,2]
[351221961,1738445439170,-500.0,0.00016438,2]
[351221962,1738445439180,-500.0,0.00016438,2]
[351221963,1738445439190,-500.0,0.00016438,2]
[351221964,1738445439199,-506.8293431,0.00016438,2]
[351221965,1738445439210,-500.0,0.00016438,2]
[351221966,1738445439220,-500.0,0.00016438,2]
[351221967,1738445439229,-500.0,0.00016438,2]
[351221968,1738445439238,-500.0,0.00016438,2]
[351221969,1738445439248,-500.0,0.00016438,2]
[351221970,1738445439258,-500.0,0.00016438,2]
[351221971,1738445439268,-500.0,0.00016438,2]
[351221972,1738445439278,-500.0,0.00016438,2]
[351221973,1738445439287,-500.0,0.00016438,2]
[351221974,1738445439296,-500.0,0.00016438,2]
[351221975,1738445439306,-472.53144877,0.00016438,2]
[351221976,1738445439316,-500.0,0.00016438,2]
[351221977,1738445439326,-326.66971618,0.00016438,2]
[351221978,1738445439338,-500.0,0.00016438,2]
[351221979,1738445439349,-500.0,0.00016438,2]
[351221980,1738445439360,-500.0,0.00016438,2]
[351221981,1738445439370,-500.0,0.00016438,2]
[351221982,1738445439381,-500.0,0.00016438,2]
[351221983,1738445439596,-500.0,0.00016438,2]
[351221984,1738445439608,-500.0,0.00016438,2]
[351221985,1738445439619,-500.84136188,0.00016438,2]
[351221986,1738445439630,-501.11455303,0.00016438,2]
[351221987,1738445439640,-500.0,0.00016438,2]
[351221988,1738445439650,-500.0,0.00016438,2]
[351221989,1738445439660,-312.88781313,0.00016438,2]
[351221990,1738445439670,-500.0,0.00016438,2]
[351221991,1738445439680,-500.0,0.00016438,2]
[351221992,1738445439690,-500.0,0.00016438,2]
[351221993,1738445439702,-500.0,0.00016438,2]
[351221994,1738445439717,-500.0,0.00016438,2]
[351221995,1738445439727,-500.69942845,0.00016438,2]
[351221996,1738445439737,-500.0,0.00016438,2]
[351221997,1738445439748,-500.0,0.00016438,2]
[351221998,1738445439758,-500.0,0.00016438,2]
[351221999,1738445439768,-501.23414826,0.00016438,2]
[351222000,1738445439778,-500.0,0.00016438,2]